lending/lending_fUSD_20240410
["ID","MTS","AMOUNT","RATE_DAILY","PERIOD"]
[322065292,1712739038658,-326.67757,0.0002,2]
[322065293,1712739038667,-368.84814831,0.00020102,2]
[322065295,1712739038676,-8287.1791319,0.00020103,2]
[322065297,1712739038685,-187.35352785,0.00020104,2]
[322065298,1712739038695,-2988.6069,0.00020104,2]
[322065299,1712739038705,-368.84814827,0.00020171,2]
[322065300,1712739038714,-4572.46475471,0.00020184,2]
[322065301,1712739038723,-3123.57979726,0.00020192,2]
[322065310,1712739039640,-161.79781133,0.00018175,2]
[322065311,1712739039649,-5163.5993346,0.00020192,2]
[322065312,1712739039659,-527.73036036,0.00020202,2]
[322065313,1712739039668,-236.18258917,0.00020202,2]
[322065314,1712739039677,-155.0947344,0.00020202,2]
[322065315,1712739039686,-443.37852066,0.00020202,2]
[322065316,1712739039695,-342.50720573,0.00020202,2]
[322065317,1712739039704,-779.7842727,0.00020202,2]
[322065318,1712739039713,-404.73102028,0.00020202,2]
[322065319,1712739039722,-155.0,0.00020202,2]
[322065320,1712739039731,-1058.17735735,0.00020202,2]
[322065321,1712739039741,-155.0,0.00020202,2]
[322065322,1712739039752,-155.0,0.00020202,2]
[322065323,1712739039762,-809.2469135,0.00020202,2]
[322065324,1712739039772,-155.19632825,0.00020202,2]
[322065325,1712739039781,-707.83928995,0.00020202,2]
[322065326,1712739039792,-155.0,0.00020202,2]
[322065327,1712739039802,-166.9536833,0.00020202,2]
[322065328,1712739039813,-215.51673044,0.00020202,2]
[322065329,1712739039823,-2354.31954713,0.00020202,2]
[322065330,1712739039834,-199.82821578,0.00020202,2]
[322065331,1712739039843,-304.59353416,0.00020202,2]
[322065332,1712739039855,-155.19883611,0.00020202,2]
[322065333,1712739039866,-155.0,0.00020202,2]
[322065334,1712739039877,-180.72667919,0.00020202,2]
[322065335,1712739039886,-266.79799477,0.00020202,2]
[322065336,1712739039895,-155.0,0.00020202,2]
[322065337,1712739039904,-934.39215825,0.00020202,2]
[322065338,1712739039915,-1105.93945422,0.00020202,2]
[322065339,1712739039958,-1755.358737,0.00020202,2]
[322065340,1712739039970,-1463.41175205,0.00020202,2]
[322065341,1712739039986,-2532.9872,0.00020202,2]
[322065354,1712739042630,-4467.74366992,0.00018175,2]
[322065355,1712739042640,-644.65092322,0.00018175,2]
[322065356,1712739042649,-2819.25871897,0.00020202,2]
[322065357,1712739042688,-290.11703675,0.00020202,2]
[322065358,1712739042742,-296.92468694,0.00020202,2]
[322065359,1712739042757,-1426.58,0.00020202,2]
[322065360,1712739042768,-337.68793509,0.00020202,2]
[322065361,1712739042905,-910.21492,0.00020202,2]
[322065362,1712739042973,-7146.2,0.00020202,2]
[322065363,1712739042985,-2950.0,0.00020202,2]
[322065364,1712739042998,-263.30592247,0.00020202,2]
[322065365,1712739043007,-155.0,0.00020202,2]
[322065366,1712739043017,-155.0,0.00020202,2]
[322065367,1712739043026,-4312.61714156,0.00020202,2]
[322065368,1712739043035,-1241.87688418,0.00020202,2]
[322065369,1712739043045,-307.93565277,0.00020202,2]
[322065370,1712739043055,-155.35145288,0.00020202,2]
[322065371,1712739043064,-366.38691564,0.00020202,2]
[322065372,1712739043074,-155.0,0.00020202,2]
[322065373,1712739043084,-967.16946716,0.00020202,2]
[322065374,1712739043096,-32.83053284,0.00020202,2]
[322065375,1712739043106,-205.85955918,0.00020202,2]
[322065376,1712739043115,-233.43375746,0.00020202,2]
[322065377,1712739043124,-201.9156312,0.00020202,2]
[322065378,1712739043134,-4732.39403045,0.00020202,2]
[322065379,1712739043146,-5043.72646041,0.00020202,2]
[322065380,1712739043160,-6536.22978666,0.00020202,2]
[322065381,1712739043170,-155.26159336,0.00020203,2]
[322065382,1712739043179,-458.98251499,0.00020203,2]
[322065383,1712739043189,-510.25310543,0.00020203,2]
[322065384,1712739043198,-508.7404605,0.00020203,2]
[322065385,1712739043208,-500.0,0.00020203,2]
[322065386,1712739043217,-500.0,0.00020203,2]
[322065387,1712739043227,-500.0,0.00020203,2]
[322065388,1712739043237,-500.0,0.00020203,2]
[322065389,1712739043246,-500.0,0.00020203,2]
[322065390,1712739043256,-453.92427023,0.00020203,2]
[322065391,1712739043265,-500.0,0.00020203,2]
[322065392,1712739043274,-310.07736829,0.00020203,2]
[322065393,1712739043286,-189.92263171,0.00020203,2]
[322065394,1712739043295,-500.0,0.00020203,2]
[322065395,1712739043305,-500.0,0.00020203,2]
[322065396,1712739043314,-500.0,0.00020203,2]
[322065397,1712739043323,-500.0,0.00020203,2]
[322065398,1712739043332,-3.71258912,0.00020203,2]
[322065399,1712739043344,-496.28741088,0.00020203,2]
[322065400,1712739043353,-608.55843773,0.00020203,2]
[322065401,1712739043362,-946.69,0.00020203,2]
[322065402,1712739043372,-430.88888027,0.00020203,2]
[322065403,1712739043383,-69.11111973,0.00020203,2]
[322065404,1712739043392,-1419.29,0.00020203,2]
[322065405,1712739043401,-500.0,0.00020203,2]
[322065406,1712739043410,-500.0,0.00020203,2]
[322065407,1712739043419,-107.17929642,0.00020203,2]
[322065408,1712739043431,-392.82070358,0.00020203,2]
[322065410,1712739043442,-600.61577431,0.00020203,2]
[322065411,1712739043451,-273.73330672,0.00020203,2]
[322065413,1712739043463,-226.26669328,0.00020203,2]
[322065414,1712739043473,-500.0,0.00020203,2]
[322065415,1712739043482,-625.16,0.00020203,2]
[322065416,1712739043491,-500.0,0.00020203,2]
[322065417,1712739043501,-529.66985398,0.00020203,2]
[322065418,1712739043510,-500.0,0.00020203,2]
[322065419,1712739043519,-1482.35,0.00020203,2]
[322065420,1712739043529,-500.0,0.00020203,2]
[322065421,1712739043538,-500.0,0.00020203,2]
[322065422,1712739043548,-500.0,0.00020203,2]
[322065423,1712739043558,-500.0,0.00020203,2]
[322065424,1712739043568,-500.0,0.00020203,2]
[322065425,1712739043577,-500.0,0.00020203,2]
[322065426,1712739043586,-861.14,0.00020203,2]
[322065427,1712739043596,-500.0,0.00020203,2]
[322065428,1712739043605,-500.0,0.00020203,2]
[322065429,1712739043614,-500.0,0.00020203,2]
[322065430,1712739043623,-500.0,0.00020203,2]
[322065431,1712739043635,-500.0,0.00020203,2]
[322065432,1712739043644,-500.0,0.00020203,2]
[322065433,1712739043653,-528.57,0.00020203,2]
[322065434,1712739043662,-500.0,0.00020203,2]
[322065435,1712739043672,-500.0,0.00020203,2]
[322065436,1712739043681,-2120.71,0.00020203,2]
[322065437,1712739043690,-500.0,0.00020203,2]
[322065438,1712739043700,-500.0,0.00020203,2]
[322065439,1712739043709,-500.0,0.00020203,2]
[322065440,1712739043719,-552.2,0.00020203,2]
[322065441,1712739043728,-500.0,0.00020203,2]
[322065442,1712739043738,-500.0,0.00020203,2]
[322065443,1712739043748,-500.0,0.00020203,2]
[322065444,1712739043758,-500.0,0.00020203,2]
[322065445,1712739043768,-2408.96,0.00020203,2]
[322065446,1712739043778,-1276.57,0.00020203,2]
[322065447,1712739043788,-500.0,0.00020203,2]
[322065448,1712739043798,-500.0,0.00020203,2]
[322065449,1712739043808,-500.0,0.00020203,2]
[322065450,1712739043817,-529.53186361,0.00020203,2]
[322065451,1712739043828,-1217.14,0.00020203,2]
[322065452,1712739043837,-2123.86,0.00020203,2]
[322065453,1712739043846,-511.31,0.00020203,2]
[322065454,1712739043856,-500.0,0.00020203,2]
[322065455,1712739043865,-538.3545986,0.00020203,2]
[322065456,1712739043874,-500.0,0.00020203,2]
[322065457,1712739043884,-500.0,0.00020203,2]
[322065458,1712739043893,-500.0,0.00020203,2]
[322065459,1712739043902,-528.43569353,0.00020203,2]
[322065460,1712739043911,-542.40416691,0.00020203,2]
[322065461,1712739043921,-572.02,0.00020203,2]
[322065462,1712739043930,-500.0,0.00020203,2]
[322065463,1712739043940,-742.1,0.00020203,2]
[322065464,1712739043950,-500.0,0.00020203,2]
[322065465,1712739043959,-500.0,0.00020203,2]
[322065466,1712739043972,-1137.02,0.00020203,2]
[322065467,1712739043983,-500.0,0.00020203,2]
[322065468,1712739043992,-1754.38,0.00020203,2]
[322065469,1712739044002,-500.0,0.00020203,2]
[322065470,1712739044013,-500.0,0.00020203,2]
[322065471,1712739044024,-500.0,0.00020203,2]
[322065472,1712739044034,-984.81,0.00020203,2]
[322065473,1712739044043,-500.0,0.00020203,2]
[322065474,1712739044053,-500.0,0.00020203,2]
[322065475,1712739044063,-612.58,0.00020203,2]
[322065476,1712739044072,-500.0,0.00020203,2]
[322065477,1712739044082,-500.0,0.00020203,2]
[322065478,1712739044092,-500.0,0.00020203,2]
[322065479,1712739044102,-619.53,0.00020203,2]
[322065480,1712739044112,-500.0,0.00020203,2]
[322065481,1712739044123,-575.2,0.00020203,2]
[322065482,1712739044133,-370.84745063,0.00020203,2]
[322065483,1712739044144,-500.0,0.00020203,2]
[322065484,1712739044154,-500.0,0.00020203,2]
[322065485,1712739044164,-530.44,0.00020203,2]
[322065486,1712739044173,-152.10638196,0.00020203,2]
[322065487,1712739044183,-500.0,0.00020203,2]
[322065488,1712739044194,-1083.32,0.00020203,2]
[322065489,1712739044204,-500.0,0.00020203,2]
[322065490,1712739044214,-500.0,0.00020203,2]
[322065491,1712739044225,-500.0,0.00020203,2]
[322065492,1712739044235,-500.0,0.00020203,2]
[322065493,1712739044245,-765.23,0.00020203,2]
[322065494,1712739044254,-500.0,0.00020203,2]
[322065495,1712739044263,-500.0,0.00020203,2]
[322065496,1712739044272,-1986.39,0.00020203,2]
[322065497,1712739044281,-521.75,0.00020203,2]
[322065498,1712739044290,-500.0,0.00020203,2]
[322065499,1712739044299,-500.0,0.00020203,2]
[322065500,1712739044311,-500.0,0.00020203,2]
[322065501,1712739044320,-500.0,0.00020203,2]
[322065502,1712739044330,-500.0,0.00020203,2]
[322065503,1712739044339,-500.0,0.00020203,2]
[322065504,1712739044348,-500.0,0.00020203,2]
[322065505,1712739044357,-774.63,0.00020203,2]
[322065506,1712739044367,-1362.67,0.00020203,2]
[322065507,1712739044376,-500.0,0.00020203,2]
[322065508,1712739044385,-500.0,0.00020203,2]
[322065509,1712739044394,-500.0,0.00020203,2]
[322065510,1712739044403,-3704.96,0.00020203,2]
[322065511,1712739044412,-500.0,0.00020203,2]
[322065512,1712739044421,-500.0,0.00020203,2]
[322065513,1712739044430,-500.0,0.00020203,2]
[322065514,1712739044439,-500.0,0.00020203,2]
[322065515,1712739044449,-500.0,0.00020203,2]
[322065516,1712739044458,-500.0,0.00020203,2]
[322065517,1712739044467,-500.0,0.00020203,2]
[322065518,1712739044476,-299.5386236,0.00020203,2]
[322065519,1712739044486,-513.06,0.00020203,2]
[322065520,1712739044495,-524.76955885,0.00020203,2]
[322065521,1712739044504,-500.0,0.00020204,2]
[322065522,1712739044515,-306.56608902,0.00020204,2]
[322065523,1712739044525,-500.0,0.00020204,2]
[322065524,1712739044534,-500.0,0.00020204,2]
[322065525,1712739044544,-500.0,0.00020204,2]
[322065526,1712739044554,-500.0,0.00020204,2]
[322065527,1712739044564,-500.0,0.00020204,2]
[322065528,1712739044574,-500.0,0.00020204,2]
[322065529,1712739044585,-500.0,0.00020204,2]
[322065530,1712739044594,-500.0,0.00020204,2]
[322065531,1712739044606,-500.0,0.00020204,2]
[322065532,1712739044615,-500.0,0.00020204,2]
[322065533,1712739044625,-500.0,0.00020204,2]
[322065534,1712739044635,-500.0,0.00020204,2]
[322065535,1712739044644,-500.0,0.00020204,2]
[322065536,1712739044654,-233.46368784,0.00020204,2]
[322065537,1712739044670,-266.53631216,0.00020204,2]
[322065538,1712739044681,-500.0,0.00020204,2]
[322065539,1712739044690,-500.0,0.00020204,2]
[322065540,1712739044700,-500.0,0.00020204,2]
[322065541,1712739044710,-500.0,0.00020204,2]
[322065542,1712739044721,-500.0,0.00020204,2]
[322065543,1712739044732,-570.79,0.00020204,2]
[322065544,1712739044745,-500.0,0.00020204,2]
[322065545,1712739044758,-287.70114185,0.00020204,2]
[322065546,1712739044768,-327.56329387,0.00020204,2]
[322065547,1712739044778,-265.89211999,0.00020204,2]
[322065548,1712739044790,-234.10788001,0.00020204,2]
[322065549,1712739044799,-217.47847413,0.00020204,2]
[322065550,1712739044809,-500.0,0.00020204,2]
[322065551,1712739044820,-500.0,0.00020204,2]
[322065552,1712739044830,-500.0,0.00020204,2]
[322065553,1712739044839,-500.0,0.00020204,2]
[322065554,1712739044848,-500.0,0.00020204,2]
[322065555,1712739044857,-328.81367142,0.00020204,2]
[322065556,1712739044866,-613.93,0.00020204,2]
[322065557,1712739044876,-331.61,0.00020204,2]
[322065558,1712739044885,-500.0,0.00020204,2]
[322065559,1712739044895,-500.0,0.00020204,2]
[322065560,1712739044904,-500.0,0.00020204,2]
[322065561,1712739044913,-500.0,0.00020204,2]
[322065562,1712739044923,-500.0,0.00020204,2]
[322065563,1712739044932,-578.03,0.00020204,2]
[322065564,1712739044942,-500.0,0.00020204,2]
[322065565,1712739044952,-500.0,0.00020204,2]
[322065566,1712739044961,-500.0,0.00020204,2]
[322065567,1712739044971,-500.0,0.00020204,2]
[322065568,1712739044980,-934.61,0.00020204,2]
[322065569,1712739044990,-549.51021719,0.00020204,2]
[322065570,1712739044999,-500.0,0.00020204,2]
[322065571,1712739045008,-500.0,0.00020204,2]
[322065572,1712739045018,-500.0,0.00020204,2]
[322065573,1712739045027,-500.0,0.00020204,2]
[322065574,1712739045036,-150.0,0.00020204,2]
[322065575,1712739045046,-500.0,0.00020204,2]
[322065576,1712739045054,-500.0,0.00020204,2]
[322065577,1712739045064,-500.0,0.00020204,2]
[322065578,1712739045073,-531.79394109,0.00020204,2]
[322065579,1712739045083,-165.56693168,0.00020204,2]
[322065580,1712739045092,-500.0,0.00020204,2]
[322065581,1712739045101,-500.0,0.00020204,2]
[322065582,1712739045110,-616.70564378,0.00020204,2]
[322065583,1712739045120,-500.0,0.00020204,2]
[322065584,1712739045129,-500.0,0.00020204,2]
[322065585,1712739045139,-500.0,0.00020204,2]
[322065586,1712739045148,-616.26,0.00020204,2]
[322065587,1712739045157,-887.99,0.00020204,2]
[322065588,1712739045166,-548.96,0.00020204,2]
[322065589,1712739045176,-500.0,0.00020204,2]
[322065590,1712739045186,-500.0,0.00020204,2]
[322065591,1712739045195,-500.0,0.00020204,2]
[322065592,1712739045205,-500.0,0.00020204,2]
[322065593,1712739045214,-898.59,0.00020204,2]
[322065594,1712739045223,-500.0,0.00020204,2]
[322065595,1712739045232,-500.0,0.00020204,2]
[322065596,1712739045241,-216.40711467,0.00020204,2]
[322065597,1712739045251,-500.0,0.00020204,2]
[322065598,1712739045260,-500.0,0.00020204,2]
[322065599,1712739045269,-500.0,0.00020204,2]
[322065600,1712739045279,-711.11,0.00020204,2]
[322065601,1712739045290,-500.0,0.00020204,2]
[322065602,1712739045299,-500.0,0.00020204,2]
[322065603,1712739045310,-683.32,0.00020204,2]
[322065604,1712739045319,-500.0,0.00020204,2]
[322065605,1712739045328,-519.48,0.00020204,2]
[322065606,1712739045338,-500.0,0.00020204,2]
[322065607,1712739045347,-500.0,0.00020204,2]
[322065608,1712739045358,-626.89,0.00020204,2]
[322065609,1712739045367,-964.25,0.00020204,2]
[322065610,1712739045377,-500.0,0.00020204,2]
[322065611,1712739045388,-500.0,0.00020204,2]
[322065613,1712739045397,-500.0,0.00020204,2]
[322065615,1712739045407,-541.34631006,0.00020204,2]
[322065617,1712739045416,-500.0,0.00020204,2]
[322065619,1712739045426,-500.0,0.00020204,2]
[322065621,1712739045436,-500.0,0.00020204,2]
[322065623,1712739045445,-500.0,0.00020204,2]
[322065625,1712739045454,-671.33,0.00020204,2]
[322065627,1712739045464,-508.86,0.00020204,2]
[322065629,1712739045474,-500.0,0.00020204,2]
[322065631,1712739045483,-500.0,0.00020204,2]
[322065632,1712739045492,-500.0,0.00020204,2]
[322065633,1712739045501,-547.4,0.00020204,2]
[322065634,1712739045511,-500.0,0.00020204,2]
[322065636,1712739045521,-500.0,0.00020204,2]
[322065638,1712739045530,-529.97,0.00020204,2]
[322065640,1712739045539,-500.0,0.00020204,2]
[322065642,1712739045549,-500.0,0.00020204,2]
[322065644,1712739045559,-565.15,0.00020204,2]
[322065646,1712739045567,-500.0,0.00020204,2]
[322065648,1712739045577,-1021.16,0.00020204,2]
[322065650,1712739045585,-310.28567059,0.00020204,2]
[322065651,1712739045595,-513.71931441,0.00020204,2]
[322065653,1712739045604,-500.0,0.00020204,2]
[322065655,1712739045613,-887.08,0.00020204,2]
[322065657,1712739045622,-500.0,0.00020204,2]
[322065659,1712739045631,-500.0,0.00020204,2]
[322065661,1712739045640,-500.0,0.00020204,2]
[322065663,1712739045649,-500.0,0.00020204,2]
[322065665,1712739045658,-513.89,0.00020204,2]
[322065667,1712739045667,-677.27,0.00020204,2]
[322065669,1712739045677,-885.74,0.00020204,2]
[322065671,1712739045686,-1445.14,0.00020204,2]
[322065673,1712739045694,-500.0,0.00020204,2]
[322065675,1712739045704,-500.0,0.00020204,2]
[322065677,1712739045713,-500.0,0.00020204,2]
[322065679,1712739045722,-500.0,0.00020204,2]
[322065681,1712739045731,-753.45,0.00020204,2]
[322065683,1712739045740,-500.0,0.00020204,2]
[322065685,1712739045753,-500.0,0.00020204,2]
[322065687,1712739045761,-500.0,0.00020204,2]
[322065689,1712739045771,-4935.81,0.00020204,2]
[322065691,1712739045780,-500.0,0.00020204,2]
[322065693,1712739045790,-500.0,0.00020204,2]
[322065695,1712739045799,-509.37436161,0.00020204,2]
[322065697,1712739045809,-728.63,0.00020204,2]
[322065699,1712739045818,-500.0,0.00020204,2]
[322065701,1712739045829,-545.78,0.00020204,2]
[322065703,1712739045839,-500.0,0.00020204,2]
[322065705,1712739045848,-500.0,0.00020204,2]
[322065707,1712739045857,-500.0,0.00020204,2]
[322065709,1712739045866,-500.0,0.00020204,2]
[322065711,1712739045875,-567.16762757,0.00020204,2]
[322065713,1712739045884,-500.0,0.00020204,2]
[322065715,1712739045893,-500.0,0.00020204,2]
[322065717,1712739045902,-500.0,0.00020204,2]
[322065719,1712739045911,-500.0,0.00020204,2]
[322065721,1712739045920,-934.77,0.00020204,2]
[322065723,1712739045929,-500.0,0.00020204,2]
[322065725,1712739045938,-500.0,0.00020204,2]
[322065727,1712739045947,-500.0,0.00020204,2]
[322065729,1712739045956,-537.35,0.00020204,2]
[322065731,1712739045965,-515.08,0.00020204,2]
[322065733,1712739045974,-500.0,0.00020204,2]
[322065735,1712739045982,-500.0,0.00020204,2]
[322065737,1712739045992,-500.0,0.00020204,2]
[322065739,1712739046001,-500.0,0.00020204,2]
[322065741,1712739046010,-631.39,0.00020204,2]
[322065743,1712739046019,-2573.74,0.00020204,2]
[322065745,1712739046028,-500.0,0.00020204,2]
[322065747,1712739046037,-632.78,0.00020204,2]
[322065749,1712739046046,-500.0,0.00020204,2]
[322065751,1712739046055,-500.0,0.00020204,2]
[322065753,1712739046064,-857.64,0.00020204,2]
[322065755,1712739046073,-500.0,0.00020204,2]
[322065757,1712739046082,-500.0,0.00020204,2]
[322065759,1712739046091,-500.0,0.00020204,2]
[322065761,1712739046100,-500.0,0.00020204,2]
[322065762,1712739046109,-526.43,0.00020204,2]
[322065764,1712739046118,-500.0,0.00020204,2]
[322065766,1712739046128,-710.81,0.00020204,2]
[322065768,1712739046137,-285.44793615,0.00020204,2]
[322065770,1712739046146,-500.0,0.00020204,2]
[322065772,1712739046155,-753.09,0.00020204,2]
[322065774,1712739046164,-500.0,0.00020204,2]
[322065776,1712739046173,-500.0,0.00020204,2]
[322065778,1712739046182,-500.0,0.00020204,2]
[322065781,1712739046193,-500.0,0.00020204,2]
[322065783,1712739046203,-500.0,0.00020204,2]
[322065785,1712739046213,-1404.33,0.00020204,2]
[322065787,1712739046222,-500.0,0.00020204,2]
[322065789,1712739046232,-500.0,0.00020204,2]
[322065791,1712739046241,-500.0,0.00020204,2]
[322065792,1712739046250,-500.0,0.00020204,2]
[322065794,1712739046260,-500.0,0.00020204,2]
[322065796,1712739046270,-500.0,0.00020204,2]
[322065797,1712739046280,-500.89904354,0.00020204,2]
[322065798,1712739046289,-627.71,0.00020204,2]
[322065799,1712739046298,-500.0,0.00020204,2]
[322065800,1712739046309,-1405.94,0.00020204,2]
[322065801,1712739046318,-208.31382579,0.00020204,2]
[322065802,1712739046327,-644.08381521,0.00020204,2]
[322065803,1712739046336,-530.64,0.00020204,2]
[322065804,1712739046345,-500.0,0.00020204,2]
[322065805,1712739046355,-500.0,0.00020205,2]
[322065806,1712739046364,-368.84814827,0.0002024,2]
[322065807,1712739046373,-314.43041615,0.00020269,2]
[322065808,1712739046383,-230.447379,0.00020274,2]
[322065809,1712739046392,-802.49,0.0002028,2]
[322065810,1712739046401,-1567.52,0.0002028,2]
[322065811,1712739046580,-500.0,0.0002028,2]
[322065812,1712739046590,-500.0,0.0002028,2]
[322065813,1712739046599,-500.0,0.0002028,2]
[322065814,1712739046608,-500.0,0.0002028,2]
[322065815,1712739046617,-500.0,0.0002028,2]
[322065816,1712739046626,-500.0,0.0002028,2]
[322065817,1712739046635,-500.0,0.0002028,2]
[322065818,1712739046644,-500.0,0.0002028,2]
[322065819,1712739046654,-500.0,0.0002028,2]
[322065820,1712739046663,-500.0,0.0002028,2]
[322065821,1712739046672,-500.0,0.0002028,2]
[322065822,1712739046681,-1177.39,0.0002028,2]
[322065823,1712739046690,-996.62,0.0002028,2]
[322065824,1712739046699,-6692.18,0.0002028,2]
[322065825,1712739046709,-1135.82,0.0002028,2]
[322065826,1712739046718,-500.0,0.0002028,2]
[322065827,1712739046727,-973.83,0.0002028,2]
[322065828,1712739046737,-10415.18,0.0002028,2]
[322065829,1712739046747,-500.0,0.0002028,2]
[322065830,1712739046758,-500.0,0.0002028,2]
[322065831,1712739046767,-500.0,0.0002028,2]
[322065832,1712739046776,-8287.17913186,0.0002028,2]
[322065833,1712739046786,-368.84814827,0.00020309,2]
[322065834,1712739046795,-8287.17913186,0.00020369,2]
[322065835,1712739046804,-187.35352783,0.00020369,2]
[322065836,1712739046814,-368.84814827,0.00020378,2]
[322065837,1712739046823,-8287.17913186,0.00020457,2]
[322065838,1712739046833,-3075.97770024,0.00020476,2]
[322065839,1712739046842,-500.0,0.00020477,2]
[322065840,1712739046851,-500.0,0.00020477,2]
[322065841,1712739046861,-500.0,0.00020477,2]
[322065842,1712739046870,-543.08559547,0.00020477,2]
[322065843,1712739046879,-500.0,0.00020477,2]
[322065844,1712739046888,-500.0,0.00020477,2]
[322065845,1712739046897,-500.0,0.00020477,2]
[322065846,1712739046906,-500.0,0.00020477,2]
[322065847,1712739046916,-500.0,0.00020477,2]
[322065848,1712739046925,-500.0,0.00020477,2]
[322065849,1712739046934,-500.0,0.00020477,2]
[322065850,1712739046944,-500.0,0.00020477,2]
[322065851,1712739046953,-946.69,0.00020477,2]
[322065852,1712739046962,-631.47856508,0.00020477,2]
[322065853,1712739046972,-1419.29,0.00020477,2]
[322065854,1712739046981,-500.0,0.00020477,2]
[322065855,1712739046991,-500.0,0.00020477,2]
[322065856,1712739047000,-500.0,0.00020477,2]
[322065857,1712739047010,-500.0,0.00020477,2]
[322065858,1712739047019,-625.16,0.00020477,2]
[322065859,1712739047028,-500.0,0.00020477,2]
[322065860,1712739047038,-1482.35,0.00020477,2]
[322065861,1712739047047,-500.0,0.00020477,2]
[322065862,1712739047057,-500.0,0.00020477,2]
[322065863,1712739047066,-500.0,0.00020477,2]
[322065864,1712739047076,-861.14,0.00020477,2]
[322065865,1712739047085,-500.0,0.00020477,2]
[322065866,1712739047095,-500.0,0.00020477,2]
[322065867,1712739047104,-528.57,0.00020477,2]
[322065868,1712739047113,-184.86345095,0.00020477,2]
[322065869,1712739047122,-2120.71,0.00020477,2]
[322065870,1712739047131,-500.0,0.00020477,2]
[322065871,1712739047140,-552.2,0.00020477,2]
[322065872,1712739047149,-500.0,0.00020477,2]
[322065873,1712739047158,-2408.96,0.00020477,2]
[322065874,1712739047167,-1276.57,0.00020477,2]
[322065875,1712739047177,-506.24424965,0.00020477,2]
[322065876,1712739047186,-1217.14,0.00020477,2]
[322065877,1712739047194,-2123.86,0.00020477,2]
[322065878,1712739047204,-511.31,0.00020477,2]
[322065879,1712739047213,-572.02,0.00020477,2]
[322065880,1712739047223,-500.0,0.00020477,2]
[322065881,1712739047232,-742.1,0.00020477,2]
[322065882,1712739047242,-1137.02,0.00020477,2]
[322065883,1712739047251,-500.0,0.00020477,2]
[322065884,1712739047260,-1754.38,0.00020477,2]
[322065885,1712739047270,-500.0,0.00020477,2]
[322065886,1712739047279,-984.81,0.00020477,2]
[322065887,1712739047288,-500.0,0.00020477,2]
[322065888,1712739047298,-500.0,0.00020477,2]
[322065889,1712739047308,-612.58,0.00020477,2]
[322065890,1712739047318,-619.53,0.00020477,2]
[322065891,1712739047327,-500.0,0.00020477,2]
[322065892,1712739047337,-500.0,0.00020477,2]
[322065893,1712739047347,-530.44,0.00020477,2]
[322065894,1712739047356,-1083.32,0.00020477,2]
[322065895,1712739047365,-500.0,0.00020477,2]
[322065896,1712739047375,-500.0,0.00020477,2]
[322065897,1712739047384,-765.23,0.00020477,2]
[322065898,1712739047393,-500.0,0.00020477,2]
[322065899,1712739047402,-1986.39,0.00020477,2]
[322065900,1712739047412,-521.75,0.00020477,2]
[322065901,1712739047421,-500.0,0.00020477,2]
[322065902,1712739047430,-500.0,0.00020477,2]
[322065903,1712739047439,-500.0,0.00020477,2]
[322065904,1712739047447,-500.0,0.00020477,2]
[322065905,1712739047457,-500.0,0.00020477,2]